bitfinex/quotes_ETHUSD_20240910
["timestamp","ask_amount","ask_price","bid_price","bid_amount"]
[1725956587021,2.12321232,2365.7,2365.2,9.902329]
[1725956587219,1.31017953,2365.7,2365.0,9.902329]
[1725956587531,0.88274911,2365.6,2365.0,9.902329]
[1725956588123,0.88274911,2365.5,2365.0,9.902329]
[1725956588320,0.88274911,2365.5,2365.1,9.902329]
[1725956588321,2.1234248,2365.5,2365.1,9.902329]
[1725956588548,0.88274911,2365.5,2365.1,9.902329]
[1725956588761,0.88274911,2365.4,2364.9,9.902329]
[1725956588922,0.88274911,2365.3,2364.9,9.902329]
[1725956589252,0.88274911,2365.2,2364.9,9.902329]
[1725956589457,0.88274911,2365.3,2364.9,9.902329]
[1725956589667,2.95072157,2365.2,2364.9,9.902329]
[1725956589952,0.88274911,2365.3,2364.9,9.902329]
[1725956590608,2.12367825,2365.3,2364.9,9.902329]
[1725956590967,0.88274911,2365.3,2364.9,9.902329]
[1725956591251,0.88274911,2365.4,2365.0,0.08455406]
[1725956591461,2.94226241,2365.3,2365.0,0.08455406]
[1725956591762,2.11495597,2365.3,2365.0,0.08455406]
[1725956592060,0.88274911,2365.3,2365.0,0.08455406]
[1725956592666,1.98831394,2365.4,2365.0,0.08455406]
[1725956592667,2.93676586,2365.2,2365.0,0.08455406]
[1725956592805,0.88274911,2365.3,2365.0,0.08455406]
[1725956593010,0.88274911,2365.3,2365.0,4.62069787]
[1725956593238,0.88274911,2365.5,2365.1,0.55]
[1725956593432,0.88274911,2365.5,2365.2,0.08454082]
[1725956593712,2.1154331,2365.5,2365.2,0.08454082]
[1725956593911,0.82167139,2365.4,2365.2,0.08454082]
[1725956594119,0.88274911,2365.5,2365.2,0.08454082]
[1725956594359,0.88274911,2365.5,2364.9,9.902329]
[1725956594516,0.88274911,2365.4,2364.9,9.902329]
[1725956594716,0.88274911,2365.4,2364.9,11.21414875]
[1725956595223,0.88274911,2365.4,2365.0,0.08454904]
[1725956595423,0.88274911,2365.4,2364.9,11.21414875]
[1725956595823,0.88274911,2365.3,2364.9,11.21414875]
[1725956596243,2.20687278,2365.3,2364.9,9.902329]
[1725956596552,0.88274911,2365.1,2364.9,9.902329]
[1725956596723,0.82176694,2365.1,2364.9,9.902329]
[1725956596931,0.88274911,2365.1,2364.9,9.902329]
[1725956597128,0.88274911,2365.2,2364.9,9.902329]
[1725956597336,2.93869068,2365.1,2364.9,9.902329]
[1725956597528,0.82353201,2365.0,2364.9,9.902329]
[1725956597727,0.88274911,2365.1,2364.4,3.2158685]
[1725956597728,0.88274911,2365.1,2364.6,9.902329]
[1725956598084,0.88274911,2365.1,2364.6,10.97191585]
[1725956598219,0.88274911,2365.0,2364.6,10.97191585]
[1725956598417,2.94162128,2365.0,2364.6,10.97191585]
[1725956598660,0.88274911,2365.0,2364.6,10.97191585]
[1725956598957,0.88274911,2365.1,2364.6,9.902329]
[1725956599153,0.88274911,2365.0,2364.6,9.902329]
[1725956599355,1.70632361,2365.0,2364.6,9.902329]
[1725956599559,0.8235745,2364.9,2364.6,9.902329]
[1725956599730,0.88274911,2365.0,2364.6,9.902329]
[1725956600343,1.69381695,2365.0,2364.6,9.902329]
[1725956600517,0.88274911,2365.0,2364.6,9.902329]
[1725956600721,0.88274911,2365.1,2364.6,9.902329]
[1725956600956,1.69396014,2365.1,2364.6,9.902329]
[1725956601154,1.69396014,2365.1,2364.7,9.902329]
[1725956601458,0.88274911,2364.9,2364.8,0.08456041]
[1725956601642,0.88274911,2364.9,2364.4,13.1181975]
[1725956601816,2.91077668,2364.9,2364.5,9.98689525]
[1725956602012,0.88274911,2365.0,2364.5,9.98689525]
[1725956602249,1.69414316,2365.0,2364.5,9.98689525]
[1725956602451,0.88274911,2364.9,2364.6,1.32027637]
[1725956602615,1.77150558,2365.2,2364.7,0.08456193]
[1725956602616,0.88274911,2365.1,2364.7,0.08456193]
[1725956602815,1.69427214,2365.0,2364.7,1.53686551]
[1725956603016,0.88274911,2365.1,2364.8,3.85042552]
[1725956603216,1.69425658,2365.1,2364.9,0.53027291]
[1725956603417,0.88274911,2365.1,2365.0,0.08455558]
[1725956603640,1.69450711,2365.1,2365.0,0.08455558]
[1725956603859,2.91211838,2365.1,2365.0,0.08455558]
[1725956604089,0.811758,2365.1,2365.0,0.08455558]
[1725956604362,2.9121848,2365.2,2365.0,0.08455558]
[1725956604518,0.811758,2365.1,2365.0,0.08455558]
[1725956605458,0.81179585,2365.1,2365.0,14.63105568]
[1725956605666,0.88274911,2365.3,2365.0,15.0965001]
[1725956605869,0.81182504,2365.2,2365.0,9.902329]
[1725956606022,1.69457415,2365.1,2365.0,9.902329]
[1725956606443,2.91231172,2365.1,2365.0,9.902329]
[1725956607179,3.35368628,2365.1,2365.0,9.902329]
[1725956607353,2.02956261,2365.1,2365.0,9.902329]
[1725956607537,3.35368628,2365.1,2365.0,9.902329]
[1725956607966,4.31358738,2365.1,2365.0,9.902329]
[1725956608131,4.31358738,2365.1,2364.3,3.0368496]
[1725956608132,5.93757599,2365.1,2364.4,9.902329]
[1725956608332,0.88479437,2364.7,2364.4,9.902329]
[1725956608533,1.69683446,2364.6,2364.4,9.902329]
[1725956608732,2.91489459,2364.6,2364.3,9.902329]
[1725956609056,0.88479437,2364.7,2364.3,9.902329]
[1725956609253,1.69673503,2364.6,2364.3,9.902329]
[1725956609767,0.88479437,2364.7,2364.3,9.902329]
[1725956609973,2.91439607,2364.7,2364.3,9.902329]
[1725956610265,0.81184068,2364.6,2364.3,9.902329]
[1725956610429,0.88479437,2364.7,2364.3,9.902329]
[1725956610624,1.69653481,2364.7,2364.3,9.902329]
[1725956611265,0.88479437,2364.6,2364.3,9.902329]
[1725956611571,0.88479437,2364.7,2364.1,10.42391585]
[1725956611865,1.69644488,2364.6,2364.2,0.08458125]
[1725956613476,0.88479437,2364.6,2364.2,0.08458125]
[1725956613873,1.69624962,2364.6,2364.1,9.902329]
[1725956614049,0.88479437,2364.6,2364.2,0.08458142]
[1725956614572,1.69624915,2364.6,2364.2,0.08458142]
[1725956614778,0.88479437,2364.6,2364.2,0.08458142]
[1725956615281,0.88479437,2364.6,2364.1,9.902329]
[1725956615639,1.18713686,2364.6,2364.0,9.902329]
[1725956615959,0.88479437,2364.1,2364.0,9.902329]
[1725956616131,2.13863049,2364.1,2363.5,9.902329]
[1725956616335,0.88445829,2363.9,2363.6,9.902329]
[1725956616588,1.69589722,2364.0,2363.6,9.902329]
[1725956616900,0.8108292,2363.9,2363.6,9.902329]
[1725956617049,0.88445829,2364.0,2363.6,9.902329]
[1725956617387,1.69525643,2364.0,2363.6,9.902329]
[1725956617587,2.91087047,2363.9,2363.6,9.902329]
[1725956617788,0.81056487,2363.8,2363.6,9.902329]
[1725956618120,0.88445829,2363.9,2363.3,9.902329]
[1725956618296,0.88445829,2364.0,2363.3,9.902329]
[1725956619998,0.99021165,2364.0,2363.3,9.902329]
[1725956620146,1.19725725,2363.9,2363.3,9.902329]
[1725956620488,0.88445829,2363.8,2363.3,9.902329]
[1725956620646,1.69504464,2363.8,2363.3,9.902329]
[1725956620851,0.88445829,2363.8,2363.3,9.902329]
[1725956621183,0.88445829,2363.9,2363.4,3.30047697]
[1725956621490,0.88445829,2364.1,2363.4,5.03870987]
[1725956622096,0.88445829,2364.0,2363.4,1.82284137]
[1725956622247,1.69395803,2364.0,2363.5,9.902329]
[1725956622447,0.88445829,2364.0,2363.6,0.08460252]
[1725956622679,0.88445829,2364.1,2363.6,0.08460252]
[1725956622991,1.69383496,2364.1,2363.6,0.08460252]
[1725956623348,0.80947966,2364.0,2363.6,0.08460252]
[1725956623551,0.88445829,2364.1,2363.6,0.08460252]
[1725956623785,1.69378431,2364.1,2363.6,0.08460252]
[1725956623954,2.90779593,2364.0,2363.6,0.08460252]
[1725956624300,0.88445829,2364.0,2363.6,0.08460252]
[1725956624535,2.70147331,2364.1,2363.6,0.08460252]
[1725956624817,0.80928451,2364.0,2363.6,0.08460252]
[1725956625114,0.88445829,2364.0,2363.6,0.08460252]
[1725956625273,3.52344404,2364.0,2363.5,9.902329]
[1725956625473,1.50022268,2364.0,2363.5,9.902329]
[1725956625678,0.88445829,2364.0,2363.5,9.902329]
[1725956625903,1.69373066,2364.0,2363.5,9.902329]
[1725956626087,0.88445829,2364.1,2363.5,9.902329]
[1725956626413,1.69371693,2364.1,2363.5,9.902329]
[1725956626611,2.18353366,2364.1,2363.5,9.902329]
[1725956626818,1.37427502,2364.1,2363.5,9.902329]
[1725956627022,0.80914881,2364.0,2363.5,9.902329]
[1725956627413,1.37427502,2364.1,2363.5,9.902329]
[1725956627717,2.90773117,2364.0,2363.5,9.902329]
[1725956627876,0.88445829,2364.0,2363.5,9.902329]
[1725956628076,1.69364916,2364.0,2363.6,9.902329]
[1725956628280,0.88445829,2364.0,2363.6,8.33261033]
[1725956628513,1.37427502,2364.1,2363.6,8.33261033]
[1725956628785,1.08530639,2364.0,2363.6,8.33261033]
[1725956629018,0.28072198,2364.0,2363.6,8.33261033]
[1725956629521,3.17728277,2364.0,2363.6,8.33261033]
[1725956629825,0.804841,2363.9,2363.6,8.33261033]
[1725956630200,1.16518027,2364.0,2363.6,8.33261033]
[1725956630681,0.80495333,2363.9,2363.6,8.33261033]
[1725956631434,1.68941162,2363.9,2363.6,8.33261033]
[1725956631634,0.80484394,2363.8,2363.6,8.33261033]
[1725956632629,0.88445829,2363.8,2363.6,8.33261033]
[1725956633145,2.89667501,2363.8,2363.6,8.33261033]
[1725956633304,1.79506398,2363.7,2363.3,8.33261033]
[1725956633491,0.4284025,2363.7,2363.3,8.33261033]
[1725956634619,1.31286079,2363.7,2363.3,8.33261033]
[1725956635116,0.80468902,2363.6,2362.9,7.48]
[1725956635317,0.80468902,2363.6,2362.7,9.71402793]
[1725956635318,1.06869426,2363.6,2363.0,8.33261033]
[1725956635636,1.31286079,2363.7,2363.0,8.33261033]
[1725956635792,0.80455021,2363.6,2363.0,8.33261033]
[1725956636213,0.99022004,2363.7,2363.0,8.33261033]
[1725956640251,0.99022004,2363.7,2363.1,8.33261033]
[1725956640447,0.80486571,2363.6,2363.1,8.33261033]
[1725956640621,0.99022004,2363.7,2363.1,8.33261033]
[1725956640827,0.80488233,2363.6,2363.1,8.33261033]
[1725956641144,0.99022004,2363.7,2363.1,8.33261033]
[1725956641351,1.43208501,2363.7,2363.1,8.33261033]
[1725956641521,0.80495184,2363.6,2363.1,8.33261033]
[1725956642054,0.88445829,2363.7,2363.2,0.08461907]
[1725956642236,1.68941555,2363.7,2363.2,0.08461907]
[1725956642608,1.68941555,2363.7,2363.1,8.33261033]
[1725956643147,0.80495726,2363.6,2363.1,8.33261033]
[1725956643386,0.88445829,2363.7,2363.1,8.33261033]
[1725956643546,0.87581829,2363.7,2363.1,8.33261033]
[1725956643947,1.68081713,2363.7,2363.1,8.33261033]
[1725956644148,0.80499884,2363.6,2363.1,8.33261033]
[1725956644348,0.87581829,2363.7,2363.2,0.08461464]
[1725956644561,0.98158617,2363.7,2363.1,9.21416696]
[1725956644991,0.80499636,2363.6,2363.1,8.33261033]
[1725956645290,0.80499636,2363.6,2363.2,0.08461895]
[1725956645584,1.43296524,2363.8,2363.2,0.08461895]
[1725956645794,2.01261153,2363.7,2363.2,0.08461895]
[1725956646284,2.01261153,2363.7,2363.2,8.41722928]
[1725956646486,2.01261153,2363.7,2363.3,0.08461545]
[1725956646896,3.33980309,2363.7,2363.3,0.08461545]
[1725956647097,2.01261153,2363.6,2363.3,0.08461545]
[1725956647307,2.01261153,2363.6,2363.2,8.33261033]
[1725956647462,2.11838154,2363.6,2363.2,8.33261033]
[1725956647658,0.80504461,2363.5,2363.2,8.33261033]
[1725956648608,1.32719156,2363.5,2363.2,8.33261033]
[1725956648774,1.52832099,2363.4,2363.2,8.33261033]
[1725956648967,0.32044672,2363.4,2363.2,8.33261033]
[1725956649380,0.80517647,2363.3,2363.2,8.33261033]
[1725956649582,2.01301659,2363.3,2363.2,8.33261033]
[1725956650574,3.34020815,2363.3,2363.2,8.33261033]
[1725956652191,3.34020815,2363.3,2362.8,8.33261033]
[1725956652393,2.01327863,2363.2,2362.8,9.9259415]
[1725956652579,1.32719156,2363.3,2362.8,9.9259415]
[1725956652789,2.13278084,2363.3,2362.8,9.9259415]
[1725956652974,1.20838037,2363.2,2362.8,9.9259415]
[1725956653176,1.20838037,2363.2,2362.9,1.00466429]
[1725956653373,1.20838037,2363.2,2363.0,0.08462811]
[1725956653574,0.88394518,2363.1,2362.8,8.33261033]
[1725956653785,0.88394518,2363.1,2362.9,8.33261033]
[1725956653786,2.90051521,2363.1,2362.9,8.33261033]
[1725956654009,0.88394518,2363.1,2362.9,8.33261033]
[1725956654591,1.69125662,2363.1,2362.9,8.33261033]
[1725956654813,2.90246529,2363.1,2362.9,8.33261033]
[1725956655102,2.90246529,2363.1,2362.9,9.1779415]
[1725956655304,0.88394518,2363.3,2363.0,0.08463205]
[1725956655610,0.88394518,2363.4,2363.1,0.55]
[1725956655767,0.88394518,2363.5,2363.2,0.08461325]
[1725956656110,1.68867002,2363.5,2363.2,0.08461325]
[1725956657515,0.80531779,2363.4,2363.2,0.08461325]
[1725956657673,2.21113674,2363.6,2363.3,12.09847883]
[1725956657878,0.88394518,2363.6,2363.4,1.21830921]
[1725956658098,0.805345,2363.5,2363.4,1.21830921]
[1725956658411,0.805345,2363.5,2363.4,1.76830921]
[1725956658612,2.89757064,2363.5,2363.4,1.85291868]
[1725956658774,2.89757064,2363.5,2363.4,1.76830921]
[1725956660285,2.01362546,2363.5,2363.4,1.76830921]
[1725956660490,3.34081702,2363.5,2363.4,1.76830921]
[1725956660894,3.34081702,2363.5,2363.4,1.21830921]
[1725956661271,3.34081702,2363.5,2363.2,8.33261033]
[1725956661476,2.90045229,2363.4,2363.2,8.33261033]
[1725956661782,2.89791531,2363.3,2363.2,8.33261033]
[1725956661984,2.8978999,2363.3,2363.2,8.88261033]
[1725956662185,2.89652551,2363.3,2363.2,9.89565578]
[1725956662803,3.33689024,2363.3,2363.2,8.33261033]
[1725956663014,5.83480018,2363.3,2363.2,8.33261033]
[1725956663200,3.61759789,2363.3,2363.2,8.33261033]
[1725956663389,5.62709864,2363.3,2363.2,8.33261033]
[1725956663614,4.45695005,2363.3,2363.2,8.33261033]
[1725956663815,9.12724058,2363.3,2363.2,8.33261033]
[1725956664320,6.46659783,2363.3,2363.2,8.33261033]
[1725956664678,9.12724058,2363.3,2363.2,8.33261033]
[1725956664878,4.45695005,2363.3,2363.2,8.33261033]
[1725956665119,3.61759789,2363.3,2363.2,8.33261033]
[1725956666778,5.83468038,2363.3,2363.2,8.33261033]
[1725956667180,3.58946292,2363.3,2362.9,8.33261033]
[1725956667514,1.77365294,2363.1,2363.0,0.08462924]
[1725956667681,1.77365294,2363.1,2362.9,0.08463154]
[1725956667682,5.36311586,2363.1,2362.9,0.08463154]
[1725956667879,3.31181716,2363.0,2362.9,0.08463154]
[1725956668075,3.31181716,2363.0,2362.8,8.33261033]
[1725956668318,2.86843433,2362.9,2362.8,8.41724415]
[1725956669280,3.31181716,2362.9,2362.8,8.41724415]
[1725956669480,3.31181716,2362.9,2362.8,8.33261033]
[1725956670294,3.31181716,2362.9,2362.8,8.41724599]
[1725956670493,2.86847167,2362.9,2362.8,8.41724599]
[1725956671230,3.31181716,2362.9,2362.8,8.41724599]
[1725956671516,1.98156371,2362.9,2362.8,8.41724599]
[1725956671720,3.31181716,2362.9,2362.8,8.41724599]
[1725956672017,3.31181716,2362.9,2362.8,8.33261033]
[1725956672222,3.31608246,2362.9,2362.8,8.33261033]
[1725956672726,3.31608246,2362.9,2362.8,8.41724605]
[1725956673716,3.31608246,2362.9,2362.8,8.33261033]
[1725956674930,2.87260876,2362.9,2362.8,8.41724609]
[1725956675738,3.31608246,2362.9,2362.8,8.41724609]
[1725956677187,2.12458505,2362.9,2362.8,8.41724609]
[1725956677422,3.31604147,2362.9,2362.8,8.41724609]
[1725956679017,3.31604147,2362.9,2362.8,8.33261033]
[1725956679409,1.98578802,2362.9,2362.8,8.33261033]
[1725956679637,3.31633796,2362.9,2362.8,8.33261033]
[1725956681606,3.31623276,2362.9,2362.8,8.33261033]
[1725956682348,3.31623276,2362.9,2362.8,8.4172464]
[1725956682349,3.34227897,2362.9,2362.8,8.4172464]
[1725956683841,3.34227897,2362.9,2362.8,8.33261033]
[1725956684041,5.40517084,2362.9,2362.8,8.33261033]
[1725956685122,3.78548717,2362.9,2362.8,8.33261033]
[1725956685451,5.40517084,2362.9,2362.8,8.33261033]
[1725956685850,3.6315179,2362.9,2362.8,8.33261033]
[1725956686036,5.40517084,2362.9,2362.8,8.33261033]
[1725956687117,3.78548717,2362.9,2362.8,8.33261033]
[1725956687314,5.41801046,2362.9,2362.8,8.33261033]
[1725956687612,5.41804273,2362.9,2362.8,8.33261033]
[1725956689653,3.64438979,2362.9,2362.8,8.33261033]
[1725956690154,5.41987547,2362.9,2362.8,8.33261033]
[1725956691715,5.41987547,2362.9,2362.7,0.1207014]
[1725956692053,3.64622253,2362.8,2362.7,0.1207014]
[1725956692256,5.42092801,2362.8,2362.7,0.1207014]
[1725956695458,3.35522023,2362.8,2362.7,0.1207014]
[1725956695822,2.91177993,2362.8,2362.7,0.8676374]
[1725956696162,3.35522023,2362.8,2362.7,0.8676374]
[1725956696363,2.02470612,2362.8,2362.7,0.20534017]
[1725956696564,2.9117188,2362.8,2362.7,0.86766673]
[1725956696768,2.91172517,2362.8,2362.7,1.52998137]
[1725956697076,2.91172517,2362.8,2362.7,9.20027706]
[1725956697220,2.91173702,2362.8,2362.7,9.8625937]
[1725956697558,3.33918861,2362.8,2362.7,9.8625937]
[1725956697854,2.89557887,2362.8,2362.7,9.8625937]
[1725956698942,0.8034698,2362.8,2362.7,10.99764149]
[1725956699593,2.89549542,2362.8,2362.7,10.99764149]
[1725956699798,2.89549542,2362.8,2362.7,10.7979191]
[1725956700088,2.89553075,2362.8,2362.7,10.7979191]
[1725956700252,2.89553075,2362.8,2362.7,9.8625937]
[1725956700605,2.89553075,2362.8,2362.7,10.79790533]
[1725956700752,2.89553075,2362.8,2362.7,9.77795493]
[1725956701290,3.33859401,2362.8,2362.7,10.71326656]
[1725956701510,3.33859401,2362.8,2362.7,9.11563829]
[1725956701657,3.33859401,2362.8,2362.7,10.05098415]
[1725956701991,3.33859401,2362.8,2362.7,9.11563829]
[1725956702194,5.72206961,2362.8,2362.7,9.11563829]
[1725956702347,6.16423983,2362.8,2362.7,9.11563829]
[1725956702551,5.83038043,2362.8,2362.7,9.11563829]
[1725956703097,5.83038043,2362.8,2362.7,0.78302796]
[1725956703449,3.61350473,2362.8,2362.7,0.78302796]
[1725956706201,3.61348095,2362.8,2362.7,0.78302796]
[1725956706696,3.61348095,2362.8,2362.7,0.1207014]
[1725956707109,4.25143549,2362.8,2362.7,0.1207014]
[1725956707459,9.02666027,2362.8,2362.7,0.1207014]
[1725956707657,4.35724237,2362.8,2362.7,0.1207014]
[1725956707984,7.01750033,2362.8,2362.7,0.1207014]
[1725956708180,7.01842264,2362.8,2362.7,0.1207014]
[1725956708371,6.36604488,2362.8,2362.7,0.1207014]
[1725956708802,8.28431559,2362.8,2362.7,0.1207014]
[1725956709020,5.3884337,2362.8,2362.7,10.45331173]
[1725956709307,2.66203213,2363.1,2362.7,11.00331173]
[1725956709308,0.88757825,2363.0,2362.7,11.00331173]
[1725956709513,0.88757825,2363.1,2363.0,1.48788417]
[1725956709658,3.34119284,2363.1,2362.8,1.10033117]
[1725956709856,3.34119284,2363.1,2362.7,9.00331173]
[1725956709857,1.33128945,2362.9,2362.7,9.00331173]
[1725956710058,2.85252377,2362.8,2362.7,9.00331173]
[1725956710296,0.80396986,2362.8,2362.7,9.00331173]
[1725956710684,0.77402599,2362.8,2362.7,9.00331173]
[1725956711302,0.77402599,2362.8,2362.7,10.4911959]
[1725956711499,0.88750027,2362.9,2362.7,10.4911959]
[1725956711658,0.88750027,2362.9,2362.8,0.55]
[1725956711856,1.9351733,2362.9,2362.8,0.55]
[1725956712060,2.82270578,2362.9,2362.8,0.55]
[1725956713071,2.82270578,2362.9,2362.7,8.45331173]
[1725956713287,2.8226693,2362.8,2362.7,8.45331173]
[1725956713575,3.85931742,2362.8,2362.7,0.1207014]
[1725956713757,6.73845052,2362.8,2362.7,0.1207014]
[1725956713961,3.48309207,2362.8,2362.7,0.1207014]
[1725956715602,2.32170289,2362.8,2362.7,0.1207014]
[1725956715792,3.48232435,2362.8,2362.7,0.1207014]
[1725956720631,3.48575688,2362.8,2362.7,0.1207014]
[1725956721692,6.25179857,2362.8,2362.7,0.1207014]
[1725956722008,9.01520347,2362.8,2362.7,0.1207014]
[1725956722567,6.35496959,2362.8,2362.7,0.1207014]
[1725956722806,4.41112864,2362.8,2362.7,0.1207014]
[1725956723372,6.35487101,2362.8,2362.7,0.1207014]
[1725956723572,4.41112864,2362.8,2362.7,0.1207014]
[1725956723772,7.07136252,2362.8,2362.7,0.1207014]
[1725956723998,6.25179857,2362.8,2362.7,0.1207014]
[1725956724368,3.59156469,2362.8,2362.7,0.1207014]
[1725956724871,5.53502335,2362.8,2362.7,0.1207014]
[1725956725075,8.19525723,2362.8,2362.7,0.1207014]
[1725956725300,9.01478295,2362.8,2362.7,0.1207014]
[1725956725835,9.0192566,2362.8,2362.7,0.1207014]
[1725956726580,4.41651025,2362.8,2362.7,0.1207014]
[1725956727676,7.07579794,2362.8,2362.7,0.1207014]
[1725956727876,9.01897167,2362.8,2362.7,0.1207014]
[1725956728909,4.41651025,2362.8,2362.7,0.1207014]
[1725956730699,4.4162395,2362.8,2362.7,0.1207014]
[1725956731318,6.35936146,2362.8,2362.7,0.1207014]
[1725956731530,4.4162395,2362.8,2362.7,0.1207014]
[1725956731817,6.35934768,2362.8,2362.7,0.1207014]
[1725956732196,7.8480309,2362.8,2362.7,0.1207014]
[1725956732398,7.8480093,2362.8,2362.7,0.1207014]
[1725956732907,10.50689714,2362.8,2362.7,0.1207014]
[1725956733082,7.84798668,2362.8,2362.7,0.1207014]
[1725956733282,10.50689714,2362.8,2362.7,0.1207014]
[1725956734688,10.95004889,2362.8,2362.0,8.33261033]
[1725956735033,9.66431098,2363.1,2361.9,7.48]
[1725956735034,1.77203469,2362.1,2361.9,7.48]
[1725956735331,1.77203469,2362.1,2362.0,8.33261033]
[1725956735496,2.830176,2362.1,2362.0,8.33261033]
[1725956735698,0.77766541,2362.1,2362.0,8.33261033]
[1725956735907,2.83006943,2362.1,2362.0,9.32320828]
[1725956736107,3.27307567,2362.1,2362.0,8.33261033]
[1725956736308,3.49926773,2362.1,2362.0,8.33261033]
[1725956736511,5.27130242,2362.1,2362.0,8.33261033]
[1725956737093,3.49926773,2362.1,2362.0,8.33261033]
[1725956737494,3.27265503,2362.1,2362.0,8.33261033]
[1725956740440,3.27440552,2362.1,2362.0,8.33261033]
[1725956740600,4.75898432,2362.1,2362.0,8.33261033]
[1725956740799,6.31563028,2362.1,2362.0,8.33261033]
[1725956741001,6.7573875,2362.1,2362.0,8.33261033]
[1725956741652,4.54359559,2362.1,2362.0,8.33261033]
[1725956741963,6.7573875,2362.1,2361.5,8.33261033]
[1725956742245,6.7573875,2362.1,2361.4,8.33261033]
[1725956742246,0.88525183,2361.8,2361.4,8.33261033]
[1725956742427,2.83105928,2361.7,2361.5,8.33261033]
[1725956742738,0.88525183,2361.7,2361.5,8.33261033]
[1725956742947,0.88525183,2361.8,2361.6,1.5733844]
[1725956743131,0.88525183,2361.8,2361.6,2.40664543]
[1725956743132,1.66317082,2361.8,2361.6,2.40664543]
[1725956743303,0.88525183,2361.8,2361.6,0.91793872]
[1725956743504,1.66319786,2361.8,2361.6,0.08467769]
[1725956744519,0.88525183,2361.9,2361.7,8.33261033]
[1725956744716,0.88525183,2362.0,2361.7,8.41728325]
[1725956745005,1.66310751,2362.0,2361.8,0.08467109]
[1725956746623,1.66310751,2362.0,2361.7,8.33261033]
[1725956747738,0.77764235,2361.9,2361.7,8.33261033]
[1725956747945,0.88525183,2362.0,2361.8,8.33261033]
[1725956748172,1.66293646,2362.0,2361.8,8.33261033]
[1725956748765,1.66293646,2362.0,2361.8,9.82131704]
[1725956748905,1.66293646,2362.0,2361.9,1.06680154]
[1725956749107,2.82934949,2362.0,2361.9,9.39941098]
[1725956749342,2.82934949,2362.0,2361.9,9.31474203]
[1725956750527,0.77759168,2362.0,2361.9,9.31474203]
[1725956750818,1.66284351,2362.1,2361.9,9.31474203]
[1725956751047,0.77759168,2362.0,2361.9,9.31474203]
[1725956751251,2.05162162,2362.0,2361.9,9.31474203]
[1725956751417,1.66284351,2362.0,2361.9,9.31474203]
[1725956751611,0.77759168,2362.0,2361.9,9.31474203]
[1725956751952,1.66284351,2362.1,2361.9,9.31474203]
[1725956752247,2.83414341,2362.0,2361.9,9.31474203]
[1725956752459,0.88525183,2362.1,2361.9,8.88261033]
[1725956752624,0.88525183,2362.1,2362.0,0.08466357]
[1725956752946,0.78090708,2362.1,2362.0,1.68026163]
[1725956753132,0.78090708,2362.1,2362.0,3.16896834]
[1725956753453,0.88525183,2362.2,2362.0,3.16896834]
[1725956753672,0.88525183,2362.2,2362.0,1.13026163]
[1725956753811,1.66615631,2362.1,2362.0,8.33261033]
[1725956754149,3.28010843,2362.1,2362.0,8.33261033]
[1725956754310,2.10878223,2362.1,2362.0,8.33261033]
[1725956754510,3.28010843,2362.1,2362.0,8.33261033]
[1725956755653,3.28001068,2362.1,2362.0,8.33261033]
[1725956756511,3.27986547,2362.1,2362.0,8.33261033]
[1725956756712,3.51471719,2362.1,2362.0,8.33261033]
[1725956756912,3.27988633,2362.1,2361.8,0.46414242]
[1725956757150,2.83728436,2362.0,2361.6,8.33261033]
[1725956757452,0.78085317,2361.9,2361.7,0.4641408]
[1725956757615,2.05747345,2361.9,2361.8,0.4641408]
[1725956757817,2.83901999,2361.9,2361.8,0.4641408]
[1725956758127,2.83901999,2361.9,2361.6,9.36587136]
[1725956758340,0.7826466,2361.8,2361.7,0.46415197]
[1725956758648,2.84213708,2361.8,2361.7,0.46415197]
[1725956758842,0.7826466,2361.8,2361.7,0.46415197]
[1725956759412,1.66779803,2361.8,2361.7,0.46415197]
[1725956759651,2.84249946,2361.8,2361.7,0.46415197]
[1725956759954,0.88515143,2361.9,2361.7,0.46415197]
[1725956760160,0.88515143,2361.9,2361.6,8.33261033]
[1725956760161,2.8430919,2361.8,2361.6,8.33261033]
[1725956760318,0.88515143,2361.8,2361.7,0.46416033]
[1725956760625,2.84310075,2361.8,2361.7,0.46416033]
[1725956760828,2.84310075,2361.8,2361.6,8.33261033]
[1725956761011,0.88515143,2361.8,2361.7,0.46415009]
[1725956761217,2.84311206,2361.8,2361.7,0.46415009]
[1725956761443,3.28571403,2361.8,2361.7,0.46415009]
[1725956762941,3.28571403,2361.8,2361.7,8.79676042]
[1725956764060,3.28571403,2361.8,2361.7,8.79678136]
[1725956766671,3.28734385,2361.8,2361.7,8.79678136]
[1725956767160,3.28734385,2361.8,2361.7,8.33261033]
[1725956767314,3.28734385,2361.8,2361.7,8.79679556]
[1725956767519,3.7284643,2361.8,2361.7,8.79679556]
[1725956767740,3.49228555,2361.8,2361.7,8.79679556]
[1725956767951,3.28751503,2361.8,2361.7,8.79679556]
[1725956768256,0.78318601,2361.8,2361.7,10.96914743]
[1725956768643,2.82043211,2361.8,2361.7,10.96914743]
[1725956769173,2.80456298,2361.8,2361.7,10.96914743]
[1725956770038,0.76727535,2361.8,2361.7,10.96914743]
[1725956770654,2.80507819,2361.8,2361.7,8.33261033]
[1725956770872,2.80507819,2361.8,2361.7,9.53935067]
[1725956771253,1.91870359,2361.8,2361.7,9.53935067]
[1725956771433,2.80542143,2361.8,2361.7,9.53935067]
[1725956773532,3.24825799,2361.8,2361.7,9.53935067]
[1725956773730,1.91870359,2361.8,2361.7,9.53935067]
[1725956773944,1.91950453,2361.8,2361.7,9.53935067]
[1725956774133,3.24905893,2361.8,2361.7,8.33261033]
[1725956774329,3.24905893,2361.8,2361.7,9.53940124]
[1725956774731,1.91950453,2361.8,2361.7,9.53940124]
[1725956774915,3.25000151,2361.8,2361.7,9.53940124]
[1725956776522,5.22892341,2361.8,2361.7,9.53940124]
[1725956777418,5.97354833,2361.8,2361.7,9.53940124]
[1725956777618,6.42037047,2361.8,2361.7,8.79680085]
[1725956778221,5.23331863,2361.8,2361.7,9.53945222]
[1725956778622,3.25096553,2361.8,2361.7,10.08945222]
[1725956778867,3.25105093,2361.8,2361.7,10.08945222]
[1725956779070,5.23883659,2361.8,2361.7,10.08945222]
[1725956781271,5.23883659,2361.8,2361.7,8.88261033]
[1725956781456,5.23883659,2361.8,2361.7,10.08937764]
[1725956782187,5.23883659,2361.8,2361.7,11.2472336]
[1725956784094,5.25437542,2361.8,2361.7,11.2472336]
[1725956784290,5.25437542,2361.8,2361.7,10.08937764]
[1725956784495,3.27102351,2361.8,2361.7,10.08937764]
[1725956784794,5.27306082,2361.8,2361.7,8.88261033]
[1725956784995,5.27306082,2361.8,2361.7,10.08935293]
[1725956787259,5.27306082,2361.8,2361.7,11.24720641]
[1725956788894,3.33481137,2361.8,2361.7,11.24720641]
[1725956789189,5.2833768,2361.8,2361.7,11.24720641]
[1725956791777,5.2833768,2361.8,2361.7,11.24722258]
[1725956792303,3.50678833,2361.8,2361.7,11.24722258]
[1725956792613,2.83763214,2361.8,2361.7,11.24722258]
[1725956792780,3.28208792,2361.8,2361.7,11.24722258]
[1725956794111,3.28246327,2361.8,2361.7,11.24722258]
[1725956797708,3.28246327,2361.8,2361.7,10.50459176]